bitfinex/quotes_SOLUSD_20260223
["timestamp","ask_amount","ask_price","bid_price","bid_amount"]
[1771852320647,0.79853313,80.812,80.776,2.97352781]
[1771852324368,0.79336173,80.81,80.778,2.97352781]
[1771852325064,6.47080699,80.817,80.778,2.97352781]
[1771852325265,0.79167738,80.82,80.778,2.97352781]
[1771852326467,12.37332805,80.819,80.779,43.32809269]
[1771852326674,12.37332805,80.819,80.78,2.97352781]
[1771852329178,0.78513122,80.819,80.782,2.97352781]
[1771852332871,0.78513122,80.819,80.781,43.32701996]
[1771852332872,0.77888068,80.817,80.784,2.97352781]
[1771852335975,0.77437871,80.815,80.786,2.97352781]
[1771852341981,6.47021118,80.833,80.748,49.53671476]
[1771852341982,0.76310909,80.817,80.788,2.88294228]
[1771852346488,0.76310909,80.817,80.787,12.37822917]
[1771852346489,0.75657653,80.815,80.79,2.88294228]
[1771852349775,0.75283433,80.813,80.79,2.88294228]
[1771852350791,0.75283433,80.813,80.792,2.88294228]
[1771852352277,0.7492196,80.811,80.792,2.88294228]
[1771852353391,0.74804226,80.809,80.782,2.88294228]
[1771852356100,0.74804226,80.809,80.784,2.88294228]
[1771852357302,0.74459077,80.807,80.784,2.88294228]
[1771852357698,0.7434666,80.805,80.778,2.88294228]
[1771852357886,0.7434666,80.805,80.779,2.88294228]
[1771852358202,0.7434666,80.799,80.779,2.88294228]
[1771852363395,0.7369876,80.797,80.773,12.38023101]
[1771852363892,0.7369876,80.797,80.773,15.26317329]
[1771852364086,0.7369876,80.797,80.774,2.88294228]
[1771852368207,0.7369876,80.797,80.775,15.50448222]
[1771852368412,0.7369876,80.797,80.776,3.12441413]
[1771852371020,3.85553033,80.81,80.778,3.12441413]
[1771852371218,6.47093304,80.817,80.778,3.12441413]
[1771852371405,0.72901877,80.817,80.778,3.12441413]
[1771852372723,12.37409359,80.814,80.78,3.12441413]
[1771852374608,0.72530218,80.815,80.781,12.37914856]
[1771852374916,0.72530218,80.815,80.782,3.12441413]
[1771852377026,0.7235073,80.813,80.784,3.12441413]
[1771852381911,0.71919742,80.809,80.779,15.50384499]
[1771852382111,0.71919742,80.809,80.78,3.12441413]
[1771852382912,0.71836491,80.799,80.77,3.12441413]
[1771852383113,0.71836491,80.799,80.771,3.12441413]
[1771852384013,12.37654397,80.798,80.772,12.3805279]
[1771852384216,0.71754197,80.797,80.773,3.12441413]
[1771852384933,0.71672848,80.779,80.758,3.12441413]
[1771852385126,0.71672848,80.779,80.74,3.85789738]
[1771852385127,0.71672848,80.769,80.737,3.12441413]
[1771852385432,3.85789738,80.75,80.732,3.12441413]
[1771852385631,0.71592434,80.749,80.71,0.2]
[1771852385839,0.71592434,80.739,80.714,3.12441413]
[1771852386224,3.85789738,80.73,80.71,0.2]
[1771852386423,12.38252083,80.759,80.711,3.12441413]
[1771852386631,3.85789738,80.75,80.711,3.12441413]
[1771852386835,4.57302681,80.75,80.711,3.12441413]
[1771852387035,0.71512943,80.749,80.711,3.12441413]
[1771852387234,0.71512943,80.749,80.712,3.12441413]
[1771852388638,0.7135669,80.747,80.712,3.12441413]
[1771852389346,0.7135669,80.747,80.714,3.12441413]
[1771852389527,12.38363226,80.752,80.721,3.12441413]
[1771852389731,12.38281281,80.758,80.731,3.12441413]
[1771852389924,0.71279907,80.739,80.712,3.12441413]
[1771852390745,3.85789738,80.73,80.712,3.12441413]
[1771852391755,12.38574153,80.738,80.714,3.12441413]
[1771852392243,0.71128976,80.737,80.714,3.12441413]
[1771852392824,12.38604835,80.736,80.714,3.12441413]
[1771852393020,3.85789738,80.74,80.715,3.12441413]
[1771852393456,3.85789738,80.73,80.715,3.12441413]
[1771852393629,0.70981493,80.739,80.715,3.12441413]
[1771852394550,3.85789738,80.73,80.715,3.12441413]
[1771852394723,0.70981493,80.739,80.715,3.12441413]
[1771852396549,12.38574153,80.738,80.715,3.12441413]
[1771852397534,13.09270708,80.738,80.715,3.12441413]
[1771852397846,0.70627354,80.737,80.715,3.12441413]
[1771852398752,12.38604835,80.736,80.715,3.12441413]
[1771852399135,13.09096163,80.736,80.715,3.12441413]
[1771852399541,0.70424484,80.735,80.715,3.12441413]
[1771852400641,3.85789738,80.73,80.715,3.12441413]
[1771852400959,0.70424484,80.735,80.715,3.12441413]
[1771852401857,3.85789738,80.73,80.711,2.864146]
[1771852404779,12.38712234,80.729,80.711,2.864146]
[1771852405940,13.08751474,80.729,80.711,2.864146]
[1771852406340,12.38712234,80.729,80.711,2.864146]
[1771852406668,16.2449946,80.73,80.711,2.864146]
[1771852408654,0.69977589,80.732,80.711,2.864146]
[1771852408841,3.85789738,80.73,80.711,2.864146]
[1771852410756,0.69737986,80.728,80.71,0.2]
[1771852411060,0.69737986,80.728,80.711,2.864146]
[1771852411243,0.69737986,80.728,80.71,0.2]
[1771852412750,6.47715005,80.736,80.71,0.2]
[1771852412751,0.69622273,80.719,80.71,0.2]
[1771852413144,3.85789738,80.72,80.71,0.2]
[1771852413353,43.35600232,80.727,80.711,2.864146]
[1771852417961,12.38742923,80.727,80.711,2.864146]
[1771852419852,3.85789738,80.73,80.711,2.864146]
[1771852421872,12.38712234,80.729,80.711,2.864146]
[1771852422372,13.07794398,80.729,80.711,2.864146]
[1771852422573,13.07794398,80.729,80.701,12.39142018]
[1771852422870,3.0630256,80.728,80.701,12.39142018]
[1771852423865,3.0630256,80.728,80.7,0.2]
[1771852424454,3.0630256,80.726,80.702,2.864146]
[1771852427277,3.0630256,80.726,80.7,0.2]
[1771852427278,37.44248596,80.736,80.704,2.864146]
[1771852428165,3.85789738,80.73,80.704,2.864146]
[1771852428773,12.38712234,80.729,80.704,2.864146]
[1771852430664,14.20706169,80.729,80.704,2.864146]
[1771852431182,12.38742923,80.727,80.704,2.864146]
[1771852431675,12.38742923,80.727,80.705,2.87128628]
[1771852431878,14.20803364,80.727,80.705,2.87128628]
[1771852433567,12.38742923,80.727,80.705,2.87128628]
[1771852433981,14.21105093,80.727,80.705,2.87128628]
[1771852434565,1.8251044,80.726,80.705,2.87128628]
[1771852439485,12.38773614,80.725,80.705,2.87128628]
[1771852440886,12.3872897,80.728,80.707,2.87128628]
[1771852441072,6.47715005,80.736,80.711,2.87128628]
[1771852441386,12.38558812,80.739,80.713,2.87128628]
[1771852442087,3.86477601,80.74,80.713,2.87128628]
[1771852442268,12.38505815,80.743,80.713,2.87128628]
[1771852442463,1.83636908,80.742,80.713,2.87128628]
[1771852443786,1.83636908,80.742,80.715,2.87128628]
[1771852443985,6.47641532,80.746,80.715,2.87128628]
[1771852444182,12.38466778,80.745,80.715,2.87128628]
[1771852445073,1.8390263,80.744,80.715,2.87128628]
[1771852445272,12.38466778,80.745,80.715,2.87128628]
[1771852445791,14.22499984,80.745,80.715,2.87128628]
[1771852445990,1.84033206,80.744,80.717,2.87128628]
[1771852446291,43.34419001,80.749,80.712,2.87128628]
[1771852446292,1.84033206,80.739,80.712,2.87128628]
[1771852447291,12.38712234,80.729,80.712,2.87128628]
[1771852447485,3.86477601,80.72,80.707,2.87128628]
[1771852447693,1.84289877,80.724,80.707,2.87128628]
[1771852448973,12.38804306,80.723,80.707,2.87128628]
[1771852449176,1.84416006,80.722,80.701,2.87128628]
[1771852449985,5.71018287,80.72,80.701,2.87128628]
[1771852450780,1.84540686,80.72,80.701,2.87128628]
[1771852451093,14.23391045,80.72,80.701,2.87128628]
[1771852451602,1.84785765,80.719,80.701,2.87128628]
[1771852452890,1.84906198,80.723,80.701,2.87128628]
[1771852453405,3.86477601,80.74,80.703,2.87128628]
[1771852453697,12.38577333,80.738,80.703,2.87128628]
[1771852456697,12.38577333,80.738,80.704,12.39095955]
[1771852456898,12.38577333,80.738,80.705,2.87128628]
[1771852458901,12.38577333,80.738,80.706,12.39065249]
[1771852459109,12.38577333,80.738,80.707,3.05014178]
[1771852459898,3.86477601,80.72,80.7,0.2]
[1771852460203,3.86477601,80.71,80.697,3.05014178]
[1771852460401,3.86477601,80.73,80.697,3.05014178]
[1771852461003,12.38727579,80.728,80.698,3.05014178]
[1771852463794,1.8635155,80.739,80.701,3.05014178]
[1771852463994,3.86477601,80.74,80.701,3.05014178]
[1771852464699,5.729316,80.74,80.701,3.05014178]
[1771852465517,12.38601319,80.737,80.702,12.39126663]
[1771852465719,12.38601319,80.737,80.703,3.05014178]
[1771852466721,3.86477601,80.73,80.705,3.05014178]
[1771852468326,1.86754337,80.729,80.705,3.05014178]
[1771852468630,3.86477601,80.72,80.7,3.05014178]
[1771852468793,16.25332048,80.72,80.7,3.05014178]
[1771852471414,12.38854447,80.72,80.7,3.05014178]
[1771852472024,14.25993381,80.72,80.7,3.05014178]
[1771852472520,1.87232339,80.724,80.702,3.05014178]
[1771852473626,12.38804306,80.723,80.702,3.05014178]
[1771852473917,14.26128976,80.723,80.702,3.05014178]
[1771852474500,1.87415941,80.722,80.702,3.05014178]
[1771852476330,5.74072951,80.72,80.702,3.05014178]
[1771852476832,1.8759535,80.719,80.702,3.05014178]
[1771852478124,12.38881042,80.718,80.696,3.05014178]
[1771852478326,1.87683512,80.717,80.696,3.05014178]
[1771852481023,6.47791941,80.726,80.697,3.05014178]
[1771852481529,3.13686008,80.725,80.697,3.05014178]
[1771852482454,3.13686008,80.724,80.697,3.05014178]
[1771852485222,3.13686008,80.722,80.697,3.05014178]
[1771852486420,3.13686008,80.719,80.697,3.05014178]
[1771852487541,12.38881042,80.718,80.697,3.05014178]
[1771852489539,12.38834999,80.721,80.697,3.05014178]
[1771852489716,12.38778106,80.725,80.699,3.01717836]
[1771852489920,3.08183428,80.724,80.699,3.01717836]
[1771852490221,12.38778106,80.725,80.701,3.01717836]
[1771852491452,12.38666204,80.732,80.701,3.01717836]
[1771852491749,3.08183428,80.731,80.702,12.39126663]
[1771852491921,3.08183428,80.731,80.703,3.01717836]
[1771852493143,12.38620177,80.735,80.703,3.01717836]
[1771852493458,3.08183428,80.734,80.711,3.01717836]
[1771852493836,12.38620177,80.735,80.713,3.01717836]
[1771852499027,43.35170619,80.735,80.713,3.01717836]
[1771852499232,46.43354047,80.735,80.713,3.01717836]
[1771852499533,3.08183428,80.734,80.713,3.01717836]
[1771852501446,12.38650861,80.733,80.713,3.01717836]
[1771852501655,3.08183428,80.733,80.713,3.01717836]
[1771852501968,6.47766676,80.736,80.715,3.01717836]
[1771852502132,3.08183428,80.744,80.715,3.01717836]
[1771852502732,3.08183428,80.739,80.715,3.01717836]
[1771852503132,3.08183428,80.739,80.711,12.38979061]
[1771852503441,3.08183428,80.737,80.711,3.01717836]
[1771852505435,3.08183428,80.742,80.713,3.01717836]
[1771852505629,3.08183428,80.751,80.721,3.01717836]
[1771852505846,9.55797412,80.751,80.721,3.01717836]
[1771852506049,3.08183428,80.751,80.721,3.01717836]
[1771852506346,3.08183428,80.749,80.712,12.38973139]
[1771852506729,2.58183428,80.749,80.72,3.01717836]
[1771852507141,2.58183428,80.749,80.721,3.01717836]
[1771852508553,12.38420765,80.748,80.721,15.40546671]
[1771852508853,12.38420765,80.748,80.72,3.86378105]
[1771852508854,3.08183428,80.758,80.722,3.01717836]
[1771852509243,3.08183428,80.739,80.7,3.86378105]
[1771852510252,3.08183428,80.737,80.698,30.97965357]
[1771852511342,3.08183428,80.737,80.699,2.45442716]
[1771852511661,3.08183428,80.737,80.71,3.86378105]
[1771852511864,3.08183428,80.737,80.711,2.44939958]
[1771852512557,34.82381868,80.75,80.705,2.44567683]
[1771852512558,3.08183428,80.735,80.705,2.44567683]
[1771852512953,3.12553809,80.729,80.69,4.06378105]
[1771852513944,3.12553809,80.729,80.691,43.37534544]
[1771852516742,3.12553809,80.719,80.69,0.2]
[1771852517651,3.12553809,80.719,80.69,12.59302493]
[1771852519239,3.12553809,80.709,80.69,12.59302493]
[1771852520567,12.38881042,80.718,80.68,0.2]
[1771852520568,3.12553809,80.699,80.68,0.2]
[1771852520762,3.02553809,80.689,80.68,0.2]
[1771852520969,3.02553809,80.689,80.667,12.39656262]
[1771852521462,3.02553809,80.689,80.662,0.11666163]
[1771852523146,3.02553809,80.689,80.661,40.42244407]
[1771852523348,3.0838689,80.709,80.681,12.39449188]
[1771852523548,3.0838689,80.716,80.69,3.86378105]
[1771852527970,3.0838689,80.716,80.691,12.39295584]
[1771852539699,3.0838689,80.714,80.69,3.86378105]
[1771852541484,12.38957788,80.713,80.69,3.86378105]
[1771852541681,3.0838689,80.712,80.69,3.86378105]
[1771852543481,3.0838689,80.712,80.69,16.25688804]
[1771852543674,12.38712234,80.729,80.701,2.83984926]
[1771852543871,12.38662356,80.733,80.711,2.83984926]
[1771852544064,3.86378105,80.75,80.711,2.83984926]
[1771852544065,12.38466778,80.745,80.711,2.83984926]
[1771852544271,12.38466778,80.745,80.721,2.83984926]
[1771852545586,3.00917858,80.744,80.721,2.83984926]
[1771852547982,3.00917858,80.744,80.722,2.74945034]
[1771852548288,12.38448345,80.747,80.722,2.74945034]
[1771852548484,2.91127889,80.746,80.722,2.74945034]
[1771852548698,2.91127889,80.746,80.718,2.74945034]
[1771852549701,2.91127889,80.744,80.718,2.74945034]
[1771852550186,2.91127889,80.744,80.72,2.74945034]
[1771852552291,12.38497454,80.743,80.72,2.74945034]
[1771852552499,12.38497454,80.743,80.722,2.74945034]
[1771852552690,15.29625343,80.743,80.722,2.74945034]
[1771852552877,12.38497454,80.743,80.722,2.74945034]
[1771852553078,2.91127889,80.742,80.722,2.74945034]
[1771852554305,2.91127889,80.762,80.724,2.74945034]
[1771852556093,12.38190755,80.763,80.724,2.74945034]
[1771852556295,2.91127889,80.763,80.726,2.74945034]
[1771852556778,2.91127889,80.759,80.726,2.74945034]
[1771852556982,2.91127889,80.759,80.722,2.74945034]
[1771852558484,12.38267416,80.758,80.723,12.38804306]
[1771852558782,2.91127889,80.757,80.723,15.1374934]
[1771852559181,2.91127889,80.749,80.715,2.74945034]
[1771852560696,2.91127889,80.747,80.715,2.74945034]
[1771852560890,2.91127889,80.747,80.71,12.38995481]
[1771852561102,2.91127889,80.747,80.711,2.74187306]
[1771852562792,2.91127889,80.745,80.712,15.10856168]
[1771852562983,2.91127889,80.745,80.713,2.71883029]
[1771852564699,2.91127889,80.743,80.713,2.71883029]
[1771852564879,2.91127889,80.743,80.714,12.38942438]
[1771852565501,2.91127889,80.739,80.708,2.69631381]
[1771852565701,2.91127889,80.729,80.703,2.68524917]
[1771852565899,2.91127889,80.729,80.704,12.39095955]
[1771852566096,2.91127889,80.729,80.704,15.07620872]
[1771852566710,2.91127889,80.729,80.705,2.67431161]
[1771852567079,2.91127889,80.727,80.705,2.67431161]
[1771852568709,2.91127889,80.725,80.7,2.65281195]
[1771852569705,3.86304863,80.72,80.682,2.64224697]
[1771852569927,2.91127889,80.709,80.677,2.64224697]
[1771852571101,2.91127889,80.699,80.62,0.2]
[1771852571302,2.91127889,80.699,80.661,2.63180333]
[1771852572316,2.91127889,80.697,80.663,2.62147966]
[1771852573492,2.91127889,80.732,80.665,3.69383402]
[1771852573807,2.91127889,80.732,80.667,2.60118667]
[1771852574007,2.91127889,80.732,80.672,2.60118667]
[1771852574490,12.38681547,80.731,80.677,2.59121466]
[1771852575615,2.91127889,80.731,80.678,43.3823347]
[1771852575790,2.91127889,80.731,80.679,2.58135718]
[1771852578110,2.59346971,80.729,80.681,2.55245891]
[1771852581215,3.86304863,80.74,80.648,11.91348608]
[1771852581216,2.58124544,80.727,80.683,2.5154533]
[1771852582508,2.58124544,80.725,80.685,2.49758196]
[1771852583516,2.58124544,80.699,80.665,2.48879995]
[1771852584714,2.58124544,80.697,80.667,2.48011881]
[1771852586017,2.58124544,80.697,80.663,2.47153737]
[1771852586708,2.58124544,80.695,80.663,2.47153737]
[1771852589809,2.58124544,80.693,80.663,2.47153737]
[1771852590422,2.58124544,80.693,80.662,12.39734519]
[1771852590718,2.58124544,80.693,80.658,2.43818605]
[1771852590922,3.86304863,80.69,80.658,2.43818605]
[1771852591130,2.58124544,80.679,80.652,12.39883886]
[1771852591427,2.58124544,80.679,80.657,12.39814329]
[1771852591635,2.58124544,80.679,80.661,12.39756511]
[1771852591934,2.58124544,80.679,80.657,12.39804974]
[1771852593131,14.97619821,80.678,80.656,2.4220795]
[1771852593336,2.58124544,80.677,80.656,2.4220795]
[1771852598328,2.58124544,80.675,80.651,2.37593368]
[1771852602435,2.58124544,80.675,80.653,2.33984839]
[1771852603142,2.58124544,80.685,80.653,2.33984839]
[1771852603313,2.58124544,80.693,80.653,2.33984839]
[1771852603647,2.58124544,80.692,80.653,2.33984839]
[1771852604544,6.44429407,80.69,80.655,2.32598787]
[1771852604752,2.58124544,80.689,80.655,2.32598787]
[1771852608239,2.58124544,80.689,80.654,43.39524387]
[1771852608240,12.39341661,80.688,80.656,33.79833366]
[1771852608441,2.6786926,80.687,80.657,2.29920933]
[1771852610446,2.6786926,80.693,80.659,2.27992205]
[1771852610631,2.6786926,80.7,80.659,2.27992205]
[1771852617046,2.6786926,80.698,80.661,2.24329608]
[1771852618243,2.6786926,80.689,80.662,21.4]
[1771852618547,2.6786926,80.689,80.65,2.23743479]
[1771852619067,43.37695815,80.688,80.652,12.39893851]
[1771852619232,2.6786926,80.687,80.652,12.39893851]
[1771852620354,2.6786926,80.679,80.64,2.2259134]
[1771852621851,2.6786926,80.677,80.64,2.2259134]
[1771852623450,2.6786926,80.677,80.642,2.20365407]
[1771852625347,2.6786926,80.675,80.644,2.1982481]
[1771852626563,2.6786926,80.669,80.634,2.18762174]
[1771852627466,2.6786926,80.667,80.631,2.18239993]
[1771852627653,2.6786926,80.667,80.631,14.58457775]
[1771852628164,2.6786926,80.667,80.632,2.18239993]
[1771852628564,2.6786926,80.659,80.632,2.18239993]
[1771852629260,2.6786926,80.665,80.632,2.18239993]
[1771852629452,2.6786926,80.665,80.634,2.17213554]
[1771852629655,2.6786926,80.663,80.634,2.17213554]
[1771852630265,2.6786926,80.659,80.634,2.17213554]
[1771852630463,2.6786926,80.659,80.629,2.1670916]
[1771852630859,2.6786926,80.649,80.63,12.60232878]
[1771852631065,2.6786926,80.649,80.63,14.76942038]
[1771852631263,2.6786926,80.649,80.631,2.1670916]
[1771852631569,2.6786926,80.659,80.633,2.16210559]
[1771852632247,2.6786926,80.658,80.633,2.16210559]
[1771852633167,12.39802406,80.659,80.633,2.16210559]
[1771852633361,3.86940554,80.67,80.635,2.15230473]
[1771852633362,2.6786926,80.661,80.635,2.15230473]
[1771852634569,2.6786926,80.659,80.635,2.15230473]
[1771852635462,6.54809814,80.67,80.637,2.14272771]
[1771852635647,2.6786926,80.669,80.637,2.14272771]
[1771852637263,2.6786926,80.669,80.639,2.13802155]
[1771852638657,2.45085175,80.668,80.639,2.13802155]
[1771852640172,2.45085175,80.668,80.641,2.11528924]
[1771852643280,6.48174592,80.686,80.643,2.10226695]
[1771852643281,2.51920609,80.679,80.643,2.10226695]
[1771852644361,2.51920609,80.688,80.643,2.10226695]
[1771852645855,2.51920609,80.688,80.645,2.08968824]
[1771852648376,2.51920609,80.686,80.647,2.08154139]
[1771852649473,2.51920609,80.686,80.649,2.07358062]
[1771852650881,2.51920609,80.684,80.649,2.07358062]
[1771852652376,2.51920609,80.684,80.651,2.06580166]
[1771852658083,2.51920609,80.684,80.653,45.43929662]
[1771852658285,2.51920609,80.696,80.654,2.0435147]
[1771852658496,2.51920609,80.696,80.656,2.03994809]
[1771852660693,2.51920609,80.696,80.658,2.03293731]
[1771852661886,2.51920609,80.695,80.658,2.03293731]
[1771852663896,2.51920609,80.695,80.661,2.02272023]
[1771852669496,2.29914229,80.693,80.663,2.00021339]
[1771852669792,2.29914229,80.693,80.665,2.00021339]
[1771852670576,2.29914229,80.693,80.664,15.9161311]
[1771852672297,2.29914229,80.689,80.664,15.9161311]
[1771852673889,2.29914229,80.689,80.664,7.76024698]
[1771852674903,3.86940554,80.68,80.664,7.76024698]
[1771852675691,3.86940554,80.68,80.648,1.16024698]
[1771852675892,43.37695815,80.688,80.648,1.16024698]
[1771852675893,3.86940554,80.67,80.648,1.16024698]
[1771852676192,3.86940554,80.66,80.628,2.5360076]
[1771852677010,3.86940554,80.65,80.617,2.5360076]
[1771852677399,3.86940554,80.64,80.614,2.5360076]
[1771852678198,3.86940554,80.64,80.608,2.5360076]
[1771852679394,12.40094743,80.639,80.608,2.5360076]
[1771852679613,12.40094743,80.639,80.61,2.7360076]
[1771852679819,3.86940554,80.63,80.61,0.2]
[1771852680024,12.40094743,80.639,80.611,2.5360076]
[1771852680196,12.39940978,80.649,80.611,2.5360076]
[1771852680398,0.02702477,80.648,80.611,2.5360076]
[1771852681611,0.04734189,80.639,80.611,2.5360076]
[1771852682710,0.04734189,80.639,80.612,14.94110857]
[1771852682913,0.04734189,80.639,80.613,2.5360076]
[1771852683313,0.04734189,80.639,80.611,2.5360076]
[1771852683513,0.04734189,80.639,80.61,0.2]
[1771852684116,0.08727875,80.629,80.61,0.2]
[1771852686118,3.87322162,80.62,80.589,2.59915932]
[1771852686328,3.87322162,80.61,80.589,2.59915932]
[1771852686534,3.87322162,80.61,80.584,2.59915932]
[1771852686746,3.87322162,80.6,80.579,2.59915932]
[1771852687029,3.87322162,80.6,80.574,2.59915932]
[1771852687440,0.03813337,80.598,80.574,2.59915932]
[1771852688825,0.03813337,80.598,80.572,12.41120496]
[1771852689214,0.03813337,80.598,80.574,2.59915932]
[1771852690948,12.40710182,80.599,80.58,0.00629341]
[1771852690949,0.09370659,80.589,80.58,0.00629341]
[1771852692130,3.87322162,80.61,80.581,2.64601262]
[1771852692511,12.40505912,80.613,80.582,12.40971929]
[1771852692717,0.0364661,80.612,80.583,2.64601262]
[1771852693520,3.87322162,80.61,80.583,2.64601262]
[1771852695319,0.07209932,80.608,80.585,2.64601262]
[1771852696135,3.87322162,80.61,80.585,2.64601262]
[1771852696438,12.49467907,80.613,80.58,0.00629341]
[1771852696439,3.97993794,80.6,80.58,0.00629341]
[1771852696630,3.87322162,80.59,80.58,0.00629341]
[1771852696833,0.10671632,80.599,80.58,12.41619471]
[1771852697132,0.10671632,80.599,80.58,15.06220733]
[1771852697340,3.87322162,80.6,80.581,2.64601262]
[1771852698334,3.87322162,80.6,80.58,0.00629341]
[1771852698335,0.14034262,80.609,80.58,0.00629341]
[1771852699239,3.87322162,80.6,80.58,0.00629341]
[1771852702745,0.23668314,80.613,80.58,0.00629341]
[1771852703526,3.87322162,80.61,80.58,0.00629341]
[1771852704247,3.87322162,80.62,80.58,0.00629341]
[1771852704449,3.87322162,80.61,80.58,0.00629341]
[1771852704629,0.267341,80.599,80.58,0.00629341]
[1771852704829,0.267341,80.599,80.577,13.57073632]
[1771852705949,3.87322162,80.59,80.577,13.57073632]
[1771852706142,3.87322162,80.59,80.577,12.41048934]
[1771852706845,2.717246,80.589,80.57,0.2]
[1771852708554,2.717246,80.588,80.57,0.2]
[1771852708933,3.87322162,80.58,80.57,0.2]
[1771852709654,2.717246,80.582,80.57,0.2]
[1771852709860,2.717246,80.579,80.555,2.56736508]
[1771852710150,2.717246,80.569,80.547,12.41500918]
[1771852710857,3.87322162,80.57,80.552,2.56736508]
[1771852712131,15.12896762,80.569,80.541,2.56736508]
[1771852712337,2.717246,80.568,80.541,2.56736508]
[1771852712641,3.87322162,80.56,80.541,2.56736508]
[1771852714247,6.59046762,80.56,80.541,2.56736508]
[1771852714633,2.717246,80.56,80.541,2.56736508]
[1771852714834,2.717246,80.56,80.542,2.56736508]
[1771852715652,2.717246,80.565,80.542,2.56736508]
[1771852715858,3.87322162,80.56,80.542,2.56736508]
[1771852716151,2.717246,80.559,80.542,2.56736508]
[1771852716446,3.87322162,80.56,80.542,2.56736508]
[1771852717435,12.40525486,80.611,80.543,12.41572824]
[1771852717638,2.717246,80.599,80.546,3.69383402]
[1771852717842,12.40525486,80.611,80.547,2.56736508]
[1771852717843,2.717246,80.606,80.547,2.56736508]
[1771852718648,2.717246,80.599,80.547,2.56736508]
[1771852720845,2.717246,80.605,80.549,2.56736508]
[1771852722464,12.40633219,80.604,80.55,43.45127249]
[1771852722657,2.717246,80.603,80.551,2.56736508]
[1771852724960,2.717246,80.603,80.553,2.56736508]
[1771852726357,2.717246,80.599,80.553,2.56736508]
[1771852726563,3.87322162,80.6,80.553,2.56736508]
[1771852726564,2.717246,80.579,80.553,2.56736508]
[1771852727167,2.717246,80.579,80.555,2.56736508]
[1771852727345,2.717246,80.587,80.555,2.56736508]
[1771852727548,15.12622191,80.587,80.555,2.56736508]
[1771852727844,2.68808578,80.586,80.555,2.56736508]
[1771852729868,31.01564731,80.605,80.556,43.44803614]
[1771852730168,2.68808578,80.609,80.557,2.80294779]
[1771852732867,2.68808578,80.621,80.562,2.80294779]
[1771852733254,2.68808578,80.619,80.562,2.80294779]
[1771852734268,2.68808578,80.619,80.566,3.69383402]
[1771852734460,2.68808578,80.619,80.567,2.80294779]
[1771852735169,3.87322162,80.63,80.569,2.80294779]
[1771852735477,2.68808578,80.632,80.57,2.80294779]
[1771852736671,2.68808578,80.609,80.571,12.41141353]
[1771852736860,2.68808578,80.599,80.571,12.41141353]
[1771852737258,2.68808578,80.589,80.571,11.80028584]
[1771852737468,2.68808578,80.589,80.56,2.80294779]
[1771852739663,2.68808578,80.579,80.554,2.80294779]
[1771852741665,2.68808578,80.594,80.556,2.80294779]
[1771852747082,2.68808578,80.589,80.558,2.80294779]
[1771852748166,2.68808578,80.579,80.558,2.80294779]
[1771852749283,3.87700341,80.57,80.552,2.80294779]
[1771852749585,2.68808578,80.579,80.552,2.80294779]
[1771852752279,2.68808578,80.596,80.555,2.80294779]
[1771852752581,2.68808578,80.599,80.557,2.80294779]
[1771852754064,2.68808578,80.589,80.557,2.80294779]
[1771852754666,2.68808578,80.594,80.559,2.80294779]
[1771852755073,6.56508919,80.59,80.559,2.80294779]
[1771852755272,2.68808578,80.589,80.559,2.80294779]
[1771852757682,2.68808578,80.589,80.561,2.9639319]
[1771852759684,2.68808578,80.589,80.562,43.44480026]
[1771852759892,2.68808578,80.589,80.563,2.86295426]
[1771852762791,2.68808578,80.589,80.565,2.86295426]
[1771852764787,2.68808578,80.589,80.567,2.86295426]
[1771852766284,2.86820939,80.604,80.567,2.86295426]
[1771852766490,2.86820939,80.604,80.568,2.86295426]
[1771852766989,2.86820939,80.604,80.569,43.44102569]
[1771852767191,2.86820939,80.604,80.57,2.86295426]
[1771852768492,2.86820939,80.604,80.571,43.43994736]
[1771852768694,2.86820939,80.604,80.572,2.86295426]
[1771852768880,2.86820939,80.609,80.572,2.86295426]
[1771852769083,3.87700341,80.63,80.573,2.86295426]
[1771852769395,3.87700341,80.63,80.571,43.43994736]
[1771852769396,12.40110121,80.638,80.575,2.86295426]
[1771852770276,6.48518367,80.649,80.58,2.86295426]
[1771852770478,12.39940978,80.649,80.58,2.86295426]
[1771852771201,0.67671475,80.648,80.58,2.86295426]
[1771852771697,3.87700341,80.64,80.58,2.86295426]
[1771852771901,0.6825696,80.639,80.58,2.86295426]
[1771852772079,0.6825696,80.629,80.58,2.86295426]
[1771852772277,0.6825696,80.629,80.582,2.86295426]
[1771852774900,0.6825696,80.629,80.584,2.86295426]
[1771852777486,0.6825696,80.629,80.586,2.86295426]
[1771852781186,0.6825696,80.629,80.588,2.86295426]
[1771852782189,0.73330232,80.627,80.588,2.86295426]
[1771852783606,0.73330232,80.627,80.59,2.86295426]
[1771852786212,0.73330232,80.627,80.592,2.86295426]
[1771852786402,3.87700341,80.62,80.592,2.86295426]
[1771852786590,0.75603894,80.619,80.592,2.86295426]
[1771852791009,0.75603894,80.619,80.591,43.42916702]
[1771852791813,0.75603894,80.619,80.592,3.12318484]
[1771852793013,0.75603894,80.619,80.593,12.40802551]
[1771852793801,0.75603894,80.619,80.593,3.12318484]